bitfinex/quotes_SOLUSD_20250417
["timestamp","ask_amount","ask_price","bid_price","bid_amount"]
[1744869332603,0.03,133.18,133.16,11.90549366]
[1744869334303,0.03,133.18,133.15,11.90549366]
[1744869335204,0.03,133.18,133.15,7.61898637]
[1744869335803,0.03,133.18,133.16,7.61898637]
[1744869340305,7.61898637,133.17,133.09,90.22010028]
[1744869340483,7.61898637,133.16,133.11,7.61898637]
[1744869340683,7.61898637,133.16,133.12,7.61898637]
[1744869340984,7.61898637,133.17,133.12,7.61898637]
[1744869341699,7.50976269,133.16,133.12,7.61898637]
[1744869342577,92.05648637,133.18,133.13,7.61898637]
[1744869342784,0.03,133.18,133.17,7.61898637]
[1744869346387,0.03,133.18,133.17,26.26863523]
[1744869347209,0.03,133.18,133.15,18.64964886]
[1744869347387,0.03,133.18,133.16,7.61898637]
[1744869349094,0.03,133.18,133.13,33.61898637]
[1744869349095,15.1576213,133.18,133.13,33.61898637]
[1744869349596,0.03,133.18,133.17,7.61898637]
[1744869349997,0.03,133.18,133.16,7.61898637]
[1744869350796,0.03,133.18,133.14,7.61898637]
[1744869350996,0.03,133.18,133.13,33.61898637]
[1744869350997,7.64898637,133.18,133.13,33.61898637]
[1744869351197,7.61898637,133.16,133.11,7.61898637]
[1744869351798,7.61898637,133.16,133.12,5.45456612]
[1744869352195,7.51032669,133.15,133.12,5.45456612]
[1744869352700,7.51032669,133.15,133.11,7.61898637]
[1744869353010,7.50995693,133.16,133.12,7.61898637]
[1744869353197,11.91033359,133.17,133.13,2.72750736]
[1744869354325,90.33883404,133.18,133.15,11.91033359]
[1744869354506,7.53883404,133.18,133.15,11.91033359]
[1744869357823,0.03,133.18,133.15,11.91033359]
[1744869358009,0.03,133.18,133.16,5.45871601]
[1744869358206,0.03,133.18,133.16,8.18797642]
[1744869359123,0.03,133.18,133.16,2.72926041]
[1744869359418,0.03,133.18,133.15,11.91033359]
[1744869359622,0.03,133.18,133.14,11.91033359]
[1744869360007,0.03,133.18,133.15,5.45871124]
[1744869360305,0.03,133.18,133.15,8.18801293]
[1744869360898,0.03,133.18,133.15,2.72930169]
[1744869361212,0.03,133.18,133.16,2.72930169]
[1744869362416,0.03,133.18,133.14,11.91033359]
[1744869363104,0.03,133.18,133.15,20.10110513]
[1744869363317,0.03,133.18,133.17,30.55998245]
[1744869364148,0.03,133.18,133.17,33.29029732]
[1744869364506,0.03,133.18,133.17,46.25995275]
[1744869366732,0.03,133.18,133.17,20.10110513]
[1744869366911,0.03,133.18,133.17,8.19077154]
[1744869367938,0.03,133.18,133.17,2.73031487]
[1744869368408,0.03,133.18,133.16,11.91033359]
[1744869372337,1.512,133.17,133.12,11.2198982]
[1744869372542,11.91033359,133.13,133.12,11.2198982]
[1744869373134,11.91033359,133.13,133.11,22.4397964]
[1744869373334,27.45033359,133.12,133.11,22.4397964]
[1744869373744,34.96235282,133.12,133.11,22.4397964]
[1744869375235,34.96235282,133.12,133.08,0.063]
[1744869376348,15.54,133.12,133.09,11.91033359]
[1744869376559,15.54,133.12,133.11,11.91033359]
[1744869376921,23.05201923,133.12,133.11,11.91033359]
[1744869377143,23.05201923,133.12,133.1,11.91033359]
[1744869378348,23.05201923,133.12,133.09,11.91033359]
[1744869378729,23.05201923,133.12,133.1,11.91033359]
[1744869379749,7.51201923,133.12,133.1,11.91033359]
[1744869380447,7.51089079,133.14,133.1,11.91033359]
[1744869380665,19.42122438,133.14,133.1,11.91033359]
[1744869380944,34.96122438,133.14,133.1,11.91033359]
[1744869381526,23.05089079,133.14,133.1,11.91033359]
[1744869381728,34.96122438,133.14,133.1,11.91033359]
[1744869384154,11.91033359,133.13,133.09,11.91033359]
[1744869384854,53.73845135,133.14,133.09,11.91033359]
[1744869386254,136.53845135,133.14,133.09,11.91033359]
[1744869389160,132.25435617,133.14,133.09,7.62623841]
[1744869389839,113.4771292,133.14,133.1,7.62623841]
[1744869392757,23.05089079,133.14,133.12,7.62623841]
[1744869392938,23.05089079,133.14,133.13,7.62623841]
[1744869393337,23.05089079,133.14,133.12,7.62623841]
[1744869395357,7.51089079,133.14,133.12,7.62623841]
[1744869397243,7.51032669,133.15,133.12,7.62623841]
[1744869398066,7.51032669,133.15,133.09,27.77867999]
[1744869398254,7.51032669,133.15,133.12,7.62623841]
[1744869400238,41.1365651,133.15,133.08,0.063]
[1744869400439,97.9365651,133.15,133.11,7.62623841]
[1744869400645,7.51032669,133.15,133.12,7.62623841]
[1744869401452,7.51032669,133.15,133.13,7.62623841]
[1744869401645,7.51032669,133.15,133.12,7.62623841]
[1744869404651,23.04999028,133.16,133.14,7.62623841]
[1744869405467,7.50999028,133.16,133.1,18.64964886]
[1744869405646,7.50999028,133.16,133.12,7.62623841]
[1744869414784,7.50999028,133.16,133.13,7.62623841]
[1744869415469,7.50999028,133.16,133.12,7.62623841]
[1744869416169,15.13622869,133.16,133.1,18.64964886]
[1744869416491,15.13622869,133.16,133.11,7.62623841]
[1744869416978,7.50999028,133.16,133.12,7.62623841]
[1744869417168,23.04999028,133.16,133.12,7.62623841]
[1744869417976,23.04999028,133.16,133.13,7.62623841]
[1744869420277,15.54,133.16,133.13,7.62623841]
[1744869420481,15.54,133.16,133.1,18.64964886]
[1744869420482,0.03,133.18,133.15,7.62623841]
[1744869420778,0.03,133.18,133.12,18.64964886]
[1744869420779,0.03,133.18,133.17,7.62623841]
[1744869421173,0.03,133.18,133.16,7.62623841]
[1744869421878,7.53866401,133.18,133.16,7.62623841]
[1744869422565,7.53866401,133.18,133.14,18.64964886]
[1744869422765,7.53866401,133.18,133.16,7.62623841]
[1744869424779,7.53866401,133.18,133.14,18.64964886]
[1744869425085,7.53866401,133.18,133.16,7.62623841]
[1744869425383,0.03,133.18,133.16,7.62623841]
[1744869426673,0.03,133.18,133.15,7.62623841]
[1744869427168,0.03,133.18,133.16,7.62623841]
[1744869432391,0.03,133.18,133.15,7.62623841]
[1744869437294,0.03,133.18,133.16,7.62623841]
[1744869437476,0.03,133.18,133.15,7.62623841]
[1744869444902,0.03,133.18,133.17,26.27588727]
[1744869445488,0.03,133.18,133.17,26.56021041]
[1744869445890,0.03,133.18,133.17,32.57396716]
[1744869447202,0.03,133.18,133.17,34.06940917]
[1744869449104,0.03,133.2,133.19,26.0]
[1744869449305,0.03,133.2,133.19,33.62623841]
[1744869450695,0.03,133.2,133.19,41.13430958]
[1744869455110,0.03,133.2,133.19,59.78395844]
[1744869455807,0.03,133.2,133.19,94.06283186]
[1744869456112,0.03,133.2,133.19,63.55787822]
[1744869467121,0.03,133.2,133.19,94.06283186]
[1744869472815,0.03,133.21,133.2,0.14216157]
[1744869473004,0.03,133.22,133.21,18.933972]
[1744869473210,0.03,133.24,133.23,26.28432314]
[1744869473433,0.03,133.24,133.23,33.91056155]
[1744869474942,0.03,133.25,133.24,26.15490253]
[1744869475106,0.03,133.25,133.24,33.78114094]
[1744869476239,0.03,133.25,133.24,7.62623841]
[1744869476612,0.03,133.25,133.23,7.62623841]
[1744869476810,0.03,133.25,133.2,18.64964886]
[1744869477141,1.5493,133.24,133.21,7.62623841]
[1744869478616,9.05456727,133.24,133.21,7.62623841]
[1744869478811,1.5493,133.24,133.21,7.62623841]
[1744869479052,1.5493,133.24,133.23,7.62623841]
[1744869479345,0.03,133.25,133.23,7.62623841]
[1744869479523,0.03,133.25,133.24,7.62623841]
[1744869481239,0.03,133.25,133.24,59.78114094]
[1744869481615,0.03,133.25,133.24,90.57041772]
[1744869482426,0.03,133.27,133.26,0.28432314]
[1744869482629,0.03,133.27,133.26,64.41551519]
[1744869482829,0.03,133.27,133.26,52.27588727]
[1744869483031,0.03,133.27,133.26,33.62623841]
[1744869484946,0.03,133.27,133.26,41.13036567]
[1744869487137,0.03,133.27,133.26,71.63531931]
[1744869488940,0.03,133.27,133.26,41.13036567]
[1744869490142,7.49773874,133.38,133.31,26.0]
[1744869490328,7.49773874,133.38,133.32,33.62623841]
[1744869490530,7.49773874,133.38,133.32,64.13119205]
[1744869491125,127.54051261,133.41,133.32,90.56591412]
[1744869491126,82.8,133.41,133.32,90.56591412]
[1744869491940,82.83,133.41,133.32,90.56591412]
[1744869492147,7.52575019,133.41,133.33,0.28432314]
[1744869492453,0.03,133.41,133.37,7.62623841]
[1744869493156,11.89661611,133.41,133.37,11.86661611]
[1744869493335,0.03,133.41,133.38,11.86661611]
[1744869495946,0.03,133.41,133.4,11.86661611]
[1744869497247,0.03,133.41,133.39,11.86661611]
[1744869497644,0.03,133.41,133.4,11.86661611]
[1744869498730,0.03,133.41,133.4,30.51626497]
[1744869499257,0.03,133.41,133.4,38.01251684]
[1744869499839,0.03,133.41,133.4,38.29683998]
[1744869500253,7.49089863,133.5,133.41,18.933972]
[1744869500460,19.35751474,133.5,133.46,11.86661611]
[1744869500859,19.35751474,133.5,133.45,11.86661611]
[1744869501163,19.35751474,133.5,133.46,11.86661611]
[1744869503267,11.86661611,133.47,133.41,18.64964886]
[1744869503449,11.86661611,133.45,133.39,22.97664104]
[1744869503763,11.86661611,133.44,133.4,11.86661611]
[1744869503943,11.86661611,133.45,133.4,11.86661611]
[1744869504763,19.3606209,133.44,133.36,29.04440724]
[1744869504945,11.86661611,133.43,133.38,11.86661611]
[1744869505359,11.86661611,133.4,133.36,11.86661611]
[1744869505736,11.86661611,133.39,133.34,11.86661611]
[1744869505936,13.47441611,133.4,133.35,11.86661611]
[1744869506846,7.49681385,133.39,133.35,11.86661611]
[1744869507561,19.36342996,133.39,133.34,11.86661611]
[1744869507862,11.86661611,133.38,133.33,37.86661611]
[1744869508268,34.84342996,133.39,133.34,11.86661611]
[1744869508458,34.84342996,133.39,133.35,11.86661611]
[1744869512667,11.86661611,133.38,133.34,11.86661611]
[1744869513267,1.86661611,133.38,133.34,11.86661611]
[1744869514075,22.97681385,133.39,133.35,11.86661611]
[1744869514544,34.84342996,133.39,133.35,11.86661611]
[1744869517473,34.84342996,133.39,133.34,11.86661611]
[1744869518674,11.86661611,133.38,133.34,11.86661611]
[1744869518856,11.86661611,133.36,133.3,1.5718]
[1744869519051,11.86661611,133.36,133.32,11.86661611]
[1744869519673,82.8,133.37,133.35,11.86661611]
[1744869520071,82.8,133.37,133.36,11.86661611]
[1744869520263,82.8,133.37,133.35,11.86661611]
[1744869521276,90.29807055,133.37,133.35,11.86661611]
[1744869521580,22.97757544,133.38,133.35,11.86661611]
[1744869521772,22.97757544,133.38,133.36,11.86661611]
[1744869521946,22.97757544,133.38,133.32,11.86661611]
[1744869522147,11.86661611,133.34,133.29,0.063]
[1744869522354,11.86661611,133.34,133.29,11.92961611]
[1744869522570,37.86661611,133.35,133.31,11.86661611]
[1744869522746,7.49962501,133.34,133.32,11.86661611]
[1744869523774,7.49962501,133.34,133.31,11.86661611]
[1744869524169,38.11530366,133.34,133.3,11.86661611]
[1744869524352,11.86661611,133.33,133.29,11.92961611]
[1744869524547,11.86661611,133.33,133.29,0.063]
[1744869524548,11.86661611,133.32,133.29,0.063]
[1744869524767,19.36849157,133.3,133.29,0.063]
[1744869524966,7.50187546,133.3,133.29,0.063]
[1744869530867,19.36849157,133.3,133.29,0.063]
[1744869531471,46.59976357,133.3,133.29,1e-08]
[1744869531786,18.933972,133.29,133.27,1e-08]
[1744869532084,53.63093925,133.28,133.27,1e-08]
[1744869533160,35.13394045,133.28,133.27,1e-08]
[1744869533385,61.13394045,133.28,133.27,1e-08]
[1744869533580,60.84961731,133.28,133.27,1e-08]
[1744869537369,34.84961731,133.28,133.27,1e-08]
[1744869540389,35.13394045,133.28,133.27,1e-08]
[1744869541802,82.8,133.3,133.27,11.86661612]
[1744869542090,128.89821439,133.33,133.28,11.86661611]
[1744869542394,90.30075007,133.32,133.28,11.86661611]
[1744869542566,7.50075007,133.32,133.28,11.86661611]
[1744869542772,22.98034652,133.33,133.29,11.86661611]
[1744869542979,22.98034652,133.33,133.31,11.86661611]
[1744869543171,34.84696263,133.33,133.27,1e-08]
[1744869543375,34.84696263,133.33,133.29,11.86661611]
[1744869543589,22.98034652,133.33,133.29,11.86661611]
[1744869544190,34.84696263,133.33,133.29,11.86661611]
[1744869544583,34.84696263,133.33,133.28,11.86661611]
[1744869545281,11.86661611,133.32,133.28,11.86661611]
[1744869545490,7.50131272,133.31,133.27,1e-08]
[1744869545670,7.50131272,133.31,133.28,11.86661611]
[1744869547175,7.50131272,133.31,133.29,11.86661611]
[1744869547690,7.50075007,133.32,133.29,11.86661611]
[1744869548176,7.50075007,133.32,133.28,11.86661611]
[1744869548405,11.86661611,133.3,133.27,1e-08]
[1744869548606,11.86661611,133.28,133.27,1e-08]
[1744869548892,27.63093925,133.28,133.27,1e-08]
[1744869549597,46.28058811,133.28,133.27,1e-08]
[1744869549894,26.0,133.25,133.23,0.063]
[1744869550094,12.15093925,133.24,133.23,0.063]
[1744869551777,19.65619292,133.24,133.19,0.063]
[1744869551975,11.86661611,133.2,133.19,0.063]
[1744869553494,11.86661611,133.21,133.19,0.063]
[1744869553993,7.5075075,133.2,133.19,0.063]
[1744869554195,31.52506286,133.2,133.19,0.063]
[1744869555278,19.65844675,133.2,133.19,0.063]
[1744869557304,19.37412361,133.2,133.19,0.063]
[1744869557505,7.5075075,133.2,133.19,0.063]
[1744869558088,19.37412361,133.2,133.19,0.063]
[1744869558583,7.5075075,133.2,133.19,0.063]
[1744869559800,19.37412361,133.2,133.19,0.063]
[1744869560401,7.5075075,133.2,133.19,0.063]
[1744869562302,90.30704327,133.21,133.19,0.063]
[1744869562505,82.8,133.21,133.19,11.92961611]
[1744869562888,7.5067868,133.22,133.19,11.92961611]
[1744869563486,26.0,133.18,133.13,0.063]
[1744869563689,15.48,133.19,133.16,11.86661611]
[1744869563896,7.5067868,133.22,133.18,11.86661611]
[1744869564719,19.37340291,133.22,133.18,11.86661611]
[1744869564918,19.37340291,133.22,133.17,11.86661611]
[1744869565416,26.0,133.15,133.13,0.063]
[1744869565586,12.15093925,133.14,133.13,0.063]
[1744869565787,24.01755536,133.14,133.13,0.063]
[1744869566415,31.52844615,133.14,133.13,0.063]
[1744869566988,19.66183004,133.14,133.13,0.063]
[1744869568444,19.3775069,133.14,133.13,0.063]
[1744869570121,11.86661611,133.13,133.12,0.063]
[1744869570644,11.86661611,133.13,133.1,0.063]
[1744869570814,11.86661611,133.11,133.1,0.063]
[1744869571541,12.15093925,133.11,133.1,1e-08]
[1744869571936,38.44498176,133.11,133.08,1e-08]
[1744869572126,37.86661611,133.09,133.08,1e-08]
[1744869573536,0.28432314,133.08,133.05,0.063]
[1744869573738,11.86661611,133.06,133.05,0.063]
[1744869573942,19.38202269,133.06,133.05,0.063]
[1744869575146,26.60921242,133.06,133.05,0.063]
[1744869579720,7.51521871,133.07,133.05,0.063]
[1744869579944,26.60695384,133.1,133.06,19.09380584]
[1744869580253,7.513148,133.1,133.07,19.09380584]
[1744869580437,19.09380584,133.08,133.05,0.063]
[1744869580624,19.09380584,133.06,133.05,0.063]
[1744869580823,19.09380584,133.07,133.05,0.063]
[1744869581834,7.51540658,133.06,133.05,0.063]
[1744869583262,19.09380584,133.1,133.05,19.15680584]
[1744869584161,26.60751836,133.09,133.05,0.063]
[1744869584365,26.60751836,133.09,133.05,19.15680584]
[1744869584661,117.20150162,133.11,133.06,19.09380584]
[1744869584662,7.51318736,133.1,133.06,19.09380584]
[1744869584961,26.6069932,133.1,133.06,19.09380584]
[1744869585166,26.6069932,133.1,133.05,19.15680584]
[1744869585167,19.09380584,133.09,133.05,19.15680584]
[1744869585338,19.09380584,133.09,133.05,0.063]
[1744869585942,26.60791933,133.09,133.05,19.15680584]
[1744869588348,26.60710596,133.1,133.06,19.09380584]
[1744869588549,7.51330012,133.1,133.06,19.09380584]
[1744869588967,26.60710596,133.1,133.06,19.09380584]
[1744869589463,26.60710596,133.1,133.05,19.15680584]
[1744869589841,26.60710596,133.1,133.06,19.09380584]
[1744869591167,26.60710596,133.1,133.05,19.15680584]
[1744869592954,26.60710596,133.1,133.06,19.09380584]
[1744869593766,26.60710596,133.1,133.05,19.15680584]
[1744869594268,26.60710596,133.1,133.06,19.09380584]
[1744869594269,7.51330012,133.1,133.06,19.09380584]
[1744869594468,26.60710596,133.1,133.06,19.09380584]
[1744869595244,19.43434105,133.1,133.06,11.92104093]
[1744869599666,19.43434105,133.1,133.05,11.98404093]
[1744869600474,19.43431791,133.1,133.06,11.92104093]
[1744869600640,19.43431791,133.1,133.05,37.98404093]
[1744869600841,11.92104093,133.09,133.05,26.063]
[1744869602241,19.43529742,133.09,133.05,26.063]
[1744869602743,11.92104093,133.06,133.05,0.063]
[1744869604559,82.8,133.11,133.05,0.063]
[1744869604754,11.92104093,133.1,133.06,11.92104093]
[1744869605068,19.4336245,133.11,133.06,11.92104093]
[1744869605243,11.92104093,133.1,133.06,11.92104093]
[1744869605444,11.92104093,133.1,133.05,11.98404093]
[1744869605843,19.43475345,133.09,133.05,0.063]
[1744869606175,11.92104093,133.08,133.05,0.063]
[1744869606677,19.43475345,133.09,133.05,0.063]
[1744869606860,11.92104093,133.08,133.05,0.063]
[1744869607069,82.8,133.08,133.05,0.063]
[1744869607387,23.01258357,133.11,133.05,11.98404093]
[1744869607560,11.92104093,133.1,133.05,11.98404093]
[1744869608473,7.51371252,133.09,133.05,11.98404093]
[1744869608775,19.43475345,133.09,133.05,11.98404093]
[1744869610274,19.43475345,133.09,133.05,0.063]
[1744869610476,7.51371252,133.09,133.05,11.98404093]
[1744869610652,7.51371252,133.09,133.06,11.92104093]
[1744869611146,19.43437165,133.1,133.06,11.92104093]
[1744869612869,19.43437165,133.1,133.05,0.063]
[1744869613076,7.51333072,133.1,133.06,11.92104093]
[1744869613391,19.43437165,133.1,133.05,19.49998171]
[1744869614181,19.43437165,133.1,133.06,11.92104093]
[1744869614981,7.51333072,133.1,133.06,11.92104093]
[1744869615183,19.43437165,133.1,133.06,11.92104093]
[1744869615358,19.43437165,133.1,133.05,7.57894078]
[1744869615566,19.43437165,133.1,133.05,19.49998171]
[1744869616785,7.51271653,133.11,133.08,11.92104093]
[1744869616990,7.51111182,133.14,133.1,11.92104093]
[1744869617169,7.51111182,133.14,133.11,11.92104093]
[1744869617369,7.51111182,133.14,133.1,18.42844093]
[1744869617790,23.01052515,133.15,133.11,11.92104093]
[1744869619497,0.03,133.16,133.13,11.92104093]
[1744869619695,0.03,133.16,133.15,11.92104093]
[1744869622479,0.03,133.16,133.15,19.43136762]
[1744869623602,0.03,133.16,133.15,39.71921648]
[1744869623786,0.03,133.16,133.15,40.00353962]
[1744869623980,0.03,133.16,133.15,46.29643962]
[1744869630099,11.95104093,133.16,133.11,8.0732]
[1744869630275,11.92104093,133.13,133.1,11.48931685]
[1744869630481,11.92104093,133.12,133.1,11.48931685]
[1744869631078,11.92104093,133.11,133.1,11.48931685]
[1744869631720,11.92104093,133.14,133.07,11.92104093]
[1744869631899,19.43392281,133.11,133.07,11.92104093]
[1744869632106,7.51217329,133.12,133.08,11.92104093]
[1744869632293,19.43321422,133.12,133.08,11.92104093]
[1744869634312,0.03,133.16,133.11,37.92104093]
[1744869634610,0.03,133.16,133.15,11.92104093]
[1744869634811,0.03,133.16,133.15,30.57068979]
[1744869635108,0.03,133.16,133.14,11.92104093]
[1744869637104,0.03,133.16,133.15,11.92104093]
[1744869637303,0.03,133.16,133.15,19.0498116]
[1744869639005,19.0798116,133.16,133.1,37.69946046]
[1744869639221,19.0498116,133.15,133.1,37.69946046]
[1744869639505,19.0498116,133.15,133.1,45.21260846]
[1744869639809,19.0498116,133.14,133.1,19.0498116]
[1744869640504,19.0498116,133.12,133.08,26.0]
[1744869640698,19.0498116,133.12,133.07,26.5645229]
[1744869641587,19.0498116,133.12,133.07,7.5147113]
[1744869641787,19.0498116,133.12,133.07,26.5645229]
[1744869643123,19.0498116,133.12,133.08,19.0498116]
[1744869643428,26.56167793,133.13,133.08,19.0498116]
[1744869643630,26.56167793,133.13,133.07,7.5147113]
[1744869643824,19.0498116,133.12,133.08,19.0498116]
[1744869645227,26.56216519,133.12,133.07,19.0498116]
[1744869645607,26.56216519,133.12,133.06,52.16487161]
[1744869645806,26.56216519,133.12,133.07,19.0498116]
[1744869646633,19.0498116,133.11,133.06,52.16487161]
[1744869646930,19.0498116,133.11,133.07,19.0498116]
[1744869647099,7.51145496,133.13,133.07,19.0498116]
[1744869647100,19.0498116,133.12,133.07,19.0498116]
[1744869647930,26.56215426,133.12,133.08,19.0498116]
[1744869648141,82.8,133.14,133.11,19.0498116]
[1744869648302,42.06028399,133.15,133.11,19.0498116]
[1744869648502,15.5,133.15,133.13,19.0498116]
[1744869648704,26.58974756,133.16,133.12,19.0498116]
[1744869648932,19.0498116,133.15,133.11,19.0498116]
[1744869649333,19.0498116,133.14,133.1,19.0498116]
[1744869649710,19.0498116,133.15,133.1,19.0498116]
[1744869650028,26.56070239,133.14,133.08,26.0]
[1744869650213,26.56070239,133.14,133.1,19.0498116]
[1744869651132,26.56070239,133.14,133.09,19.0498116]
[1744869651428,19.0498116,133.13,133.09,19.0498116]
[1744869652436,19.0498116,133.11,133.06,26.0]
[1744869652809,19.0498116,133.11,133.05,9.12015505]
[1744869653206,19.0498116,133.11,133.07,19.0498116]
[1744869653602,7.51305507,133.11,133.07,19.0498116]
[1744869653808,7.51305507,133.11,133.08,19.0498116]
[1744869654007,7.51305507,133.11,133.07,19.0498116]
[1744869655219,82.8,133.13,133.1,19.0498116]
[1744869655618,7.53983952,133.16,133.12,19.0498116]
[1744869655827,7.53983952,133.16,133.13,19.0498116]
[1744869656330,7.53983952,133.16,133.1,19.0498116]
[1744869656331,19.0498116,133.15,133.1,19.0498116]
[1744869656933,19.0498116,133.14,133.09,19.0498116]
[1744869657232,7.51145496,133.13,133.09,19.0498116]
[1744869659332,7.51145496,133.13,133.1,11.91640024]
[1744869659723,7.51145496,133.13,133.11,11.91640024]
[1744869660130,7.51145496,133.13,133.1,11.91640024]
[1744869660328,7.51089079,133.14,133.1,11.91640024]
[1744869660539,7.53981536,133.16,133.13,11.91640024]
[1744869660728,7.53981536,133.16,133.14,11.91640024]
[1744869660918,7.53981536,133.16,133.13,11.91640024]
[1744869661319,7.53981536,133.16,133.14,11.91640024]
[1744869661620,11.94640024,133.16,133.11,11.91640024]
[1744869661816,11.91640024,133.15,133.1,11.91640024]
[1744869662034,11.91640024,133.13,133.07,26.0]
[1744869662240,11.91640024,133.12,133.05,43.27003505]
[1744869662421,11.91640024,133.12,133.05,69.27003505]
[1744869662740,110.21640024,133.14,133.1,11.91640024]
[1744869662944,15.5,133.14,133.1,11.91640024]
[1744869663643,7.51145496,133.13,133.1,11.91640024]
[1744869664345,15.5,133.14,133.12,11.91640024]
[1744869664540,91.96505383,133.16,133.13,11.91640024]
[1744869664730,9.16505383,133.16,133.13,11.91640024]
[1744869664922,9.16505383,133.16,133.12,11.91640024]
[1744869665121,21.08145407,133.16,133.11,11.91640024]
[1744869665325,11.91640024,133.14,133.1,11.91640024]
[1744869665516,27.93946055,133.16,133.08,11.91640024]
[1744869665517,11.91640024,133.13,133.08,11.91640024]
[1744869665917,7.51201923,133.12,133.08,11.91640024]
[1744869666146,19.42841947,133.12,133.07,11.91640024]
[1744869666521,11.91640024,133.11,133.07,11.91640024]
[1744869667543,11.91640024,133.11,133.05,0.063]
[1744869667736,11.91640024,133.11,133.06,11.91640024]
[1744869667942,7.51371252,133.09,133.06,11.91640024]
[1744869669352,7.51371252,133.09,133.05,11.97940024]
[1744869670540,7.513148,133.1,133.06,11.91640024]
[1744869670743,19.42954824,133.1,133.06,11.91640024]
[1744869672051,11.91640024,133.08,133.05,0.063]
[1744869672230,11.91640024,133.07,133.05,0.063]
[1744869672851,7.51540658,133.06,133.05,0.063]
[1744869676351,19.43180682,133.06,133.05,0.063]
[1744869676561,102.23180682,133.06,133.05,0.063]
[1744869677958,102.51612996,133.06,133.05,0.063]
[1744869678550,121.16577882,133.06,133.05,1e-08]
[1744869678755,0.28432314,133.04,133.0,0.063]
[1744869678939,11.91640024,133.01,133.0,0.063]
[1744869680146,11.91640024,133.02,133.0,0.063]
[1744869680549,19.43430083,133.02,133.0,0.063]
[1744869680863,11.91640024,133.02,133.0,0.063]
[1744869681360,117.73183295,133.06,133.01,11.91640024]
[1744869681666,98.3,133.06,133.02,11.91640024]
[1744869681962,117.73187869,133.06,133.02,11.91640024]
[1744869682163,105.81547845,133.06,133.03,11.91640024]
[1744869682364,117.73187869,133.06,133.02,11.91640024]
[1744869682538,117.73187869,133.06,133.01,11.91640024]
[1744869682539,0.28432314,133.05,133.01,11.91640024]
[1744869682739,12.20072338,133.05,133.0,11.97940024]
[1744869683939,94.71640024,133.04,133.0,11.97940024]
[1744869684639,82.8,133.04,133.02,11.91640024]
[1744869684857,82.8,133.04,133.03,11.91640024]
[1744869686059,82.8,133.06,133.03,11.91640024]
[1744869686257,82.8,133.06,133.05,11.91640024]
[1744869686442,23.01520393,133.07,133.04,11.91640024]
[1744869686640,23.01520393,133.07,133.01,7.51808195]
[1744869686641,34.93160417,133.07,133.01,7.51808195]
[1744869686859,34.93160417,133.07,133.03,11.91640024]
[1744869687534,23.01520393,133.07,133.03,11.91640024]
[1744869688263,23.01520393,133.07,133.04,11.91640024]
[1744869688568,23.01520393,133.07,133.03,11.91640024]
[1744869689464,34.93160417,133.07,133.03,11.91640024]
[1744869690034,11.91640024,133.05,133.01,11.91640024]
[1744869690233,113.65037224,133.06,133.0,0.063]
[1744869690458,82.8,133.05,133.01,11.91640024]
[1744869691142,82.8,133.05,133.03,11.91640024]
[1744869691345,7.51597143,133.05,133.03,11.91640024]
[1744869691568,7.51597143,133.05,133.02,11.91640024]
[1744869694271,90.31597143,133.05,133.02,11.91640024]
[1744869697267,90.31597143,133.05,133.03,11.91640024]
[1744869697842,90.31597143,133.05,133.0,0.063]
[1744869697843,90.31597143,133.05,133.04,11.91640024]
[1744869698770,90.31597143,133.05,133.03,11.91640024]
[1744869700358,105.81597143,133.05,133.03,11.91640024]
[1744869701871,105.81597143,133.05,133.02,11.91640024]
[1744869702272,105.81597143,133.05,133.03,11.91640024]
[1744869702768,105.81597143,133.05,133.02,11.91640024]
[1744869703473,0.28432314,133.04,133.0,0.063]
[1744869703649,82.8,133.03,133.01,11.91640024]
[1744869703852,82.8,133.03,133.02,11.91640024]
[1744869704170,82.8,133.03,133.01,11.91640024]
[1744869705063,90.31766651,133.02,133.0,0.063]
[1744869707466,18.933972,133.01,133.0,0.063]
[1744869707673,0.28432314,133.01,133.0,0.063]
[1744869709480,7.51766651,133.02,133.0,11.97940024]
[1744869709660,23.01766651,133.02,133.01,11.91640024]
[1744869711364,23.01766651,133.02,133.0,0.063]
[1744869711565,23.01766651,133.02,133.0,11.97940024]
[1744869712566,23.01766651,133.02,133.0,0.063]
[1744869713785,23.01766651,133.02,133.0,11.97940024]
[1744869713966,15.5,133.02,133.01,11.91640024]
[1744869714481,23.01766651,133.02,133.0,0.063]
[1744869714676,23.01766651,133.02,133.01,11.91640024]